bitfinex-derivatives/quotes_SOLF0:USTF0_20240926
["timestamp","ask_amount","ask_price","bid_price","bid_amount"]
[1727390201690,13.0667,155.9,155.86,3.2073]
[1727390201900,13.0667,155.9,155.87,10.85174151]
[1727390202097,13.0667,155.9,155.84,86.8]
[1727390202492,9.86,155.9,155.87,3.2072]
[1727390205088,9.86,155.89,155.86,3.2074]
[1727390205290,9.86,155.89,155.87,10.84863067]
[1727390205502,9.86,155.89,155.86,3.2074]
[1727390205696,3.2072,155.88,155.84,3.2078]
[1727390205892,9.86,155.87,155.85,6.41156919]
[1727390206200,9.86,155.87,155.85,4.4373704]
[1727390207998,9.86,155.87,155.84,3.2078]
[1727390208202,3.2072,155.88,155.84,3.2078]
[1727390210394,3.2072,155.88,155.85,3.2077]
[1727390213608,9.86,155.9,155.84,9.86]
[1727390214299,4.018,155.94,155.86,9.86]
[1727390214505,9.86,155.93,155.88,9.86]
[1727390214701,3.2064,155.92,155.88,13.067]
[1727390215705,13.0661,155.93,155.88,9.86]
[1727390216302,13.0661,155.93,155.89,3.2068]
[1727390219514,13.0661,155.93,155.9,3.2067]
[1727390220804,9.86,155.93,155.9,3.2067]
[1727390221512,13.0661,155.93,155.9,3.2067]
[1727390221713,74.1189042,155.96,155.85,9.86]
[1727390221905,9.86,155.91,155.85,9.86]
[1727390222505,3.2067,155.9,155.87,3.2071]
[1727390223913,9.86,155.89,155.86,3.2074]
[1727390225412,3.2068,155.9,155.87,3.2072]
[1727390225620,13.0665,155.91,155.85,9.86]
[1727390226018,13.0665,155.91,155.87,3.2071]
[1727390229515,13.0665,155.91,155.88,3.207]
[1727390229720,13.0663,155.92,155.86,9.86]
[1727390229913,9.86,155.92,155.86,9.86]
[1727390230120,9.86,155.93,155.86,12.546]
[1727390230622,9.86,155.93,155.88,9.86]
[1727390230819,13.0661,155.93,155.9,3.2066]
[1727390232016,13.0663,155.92,155.9,3.2066]
[1727390232220,9.86,155.92,155.87,9.86]
[1727390232721,3.2065,155.91,155.88,3.2069]
[1727390233523,9.86,155.9,155.88,3.2069]
[1727390236621,1.3648,155.95,155.88,9.86]
[1727390236827,9.86,155.94,155.88,9.86]
[1727390237227,1.3648,155.95,155.88,9.86]
[1727390237423,13.0662,155.93,155.9,3.2066]
[1727390237628,13.0662,155.93,155.88,9.86]
[1727390238225,13.0662,155.93,155.9,3.2065]
[1727390239524,13.0662,155.93,155.91,3.2064]
[1727390240224,3.2062,155.93,155.91,3.2064]
[1727390240525,3.2059,155.94,155.91,3.2064]
[1727390243431,9.86,155.93,155.9,3.2066]
[1727390243633,9.86,155.92,155.86,2.686]
[1727390244538,3.2065,155.91,155.88,3.2069]
[1727390245432,3.2065,155.91,155.88,3.207]
[1727390248742,13.0665,155.91,155.87,3.2072]
[1727390248940,74.14267838,155.96,155.85,11.1651]
[1727390248941,3.2071,155.88,155.85,1.3051]
[1727390249146,3.2071,155.88,155.8,2.5614]
[1727390249147,3.2071,155.88,155.82,9.86]
[1727390249348,3.2071,155.88,155.85,3.2075]
[1727390253846,13.0669,155.89,155.85,3.2075]
[1727390254354,9.86,155.89,155.83,4.42665783]
[1727390254646,9.86,155.89,155.84,9.86]
[1727390255543,9.86,155.89,155.84,14.28587456]
[1727390255739,3.9771,155.95,155.84,9.86]
[1727390256045,9.86,155.92,155.87,9.86]
[1727390256544,3.9771,155.95,155.87,9.86]
[1727390256746,9.86,155.94,155.88,9.86]
[1727390257742,3.2063,155.92,155.89,3.2067]
[1727390258443,3.2061,155.93,155.89,3.2067]
[1727390259749,9.61744955,156.04,155.91,9.86]
[1727390259943,9.86,155.97,155.91,9.86]
[1727390260544,3.2056,155.96,155.92,3.2062]
[1727390261851,3.2051,155.98,155.94,3.2058]
[1727390262158,13.0651,155.98,155.94,3.2058]
[1727390262448,3.2052,155.97,155.94,3.2058]
[1727390262952,3.2054,155.96,155.93,3.206]
[1727390266247,9.86,155.98,155.94,3.2057]
[1727390266449,9.86,156.0,155.94,3.2057]
[1727390266851,3.2052,155.98,155.94,3.2057]
[1727390267484,72.21618087,156.02,155.94,9.86]
[1727390267751,80.81978087,156.02,155.96,9.86]
[1727390268452,3.2047,156.0,155.97,3.2052]
[1727390268850,80.81978087,156.02,155.96,9.86]
[1727390269049,9.86,156.0,155.94,9.86]
[1727390269251,9.86,155.99,155.93,11.1852]
[1727390270156,9.86,155.97,155.91,9.86]
[1727390270452,9.86,155.99,155.93,9.86]
[1727390271757,3.2051,155.98,155.95,3.2056]
[1727390273253,13.0649,155.99,155.96,3.2054]
[1727390273454,3.2049,155.99,155.96,3.2054]
[1727390274359,9.86,155.99,155.95,3.2055]
[1727390274558,9.86,156.0,155.95,9.86]
[1727390275554,3.2049,155.99,155.96,3.2054]
[1727390276855,3.2046,156.0,155.97,3.2052]
[1727390278055,3.2044,156.01,155.96,9.86]
[1727390278359,3.2044,156.01,155.98,3.205]
[1727390280759,9.86,156.01,155.96,9.86]
[1727390281064,70.95978087,156.02,155.97,9.86]
[1727390281254,70.95978087,156.02,155.98,3.2048]
[1727390282753,3.2044,156.01,155.98,3.2048]
[1727390285264,3.2046,156.0,155.97,3.2052]
[1727390285963,80.81978087,156.02,155.95,3.2056]
[1727390285964,9.86,156.01,155.95,3.2056]
[1727390286459,9.86,155.97,155.91,10.8093256]
[1727390286664,9.86,155.97,155.92,9.86]
[1727390286961,9.86,155.99,155.92,9.86]
[1727390287161,1.275,156.0,155.92,9.86]
[1727390287462,3.2054,155.97,155.94,9.86]
[1727390287861,13.0655,155.96,155.9,69.29410305]
[1727390288561,3.2056,155.95,155.9,69.29410305]
[1727390288763,9.86,155.96,155.9,69.29410305]
[1727390289860,3.206,155.94,155.9,72.50060305]
[1727390290465,9.86,155.92,155.81,76.94]
[1727390290661,9.86,155.92,155.86,9.86]
[1727390290866,9.86,155.92,155.83,10.81803869]
[1727390291161,3.2068,155.9,155.86,3.2074]
[1727390291363,9.86,155.92,155.86,3.2074]
[1727390292360,9.86,155.91,155.85,13.0676]
[1727390292559,9.86,155.89,155.83,9.86]
[1727390292763,9.86,155.91,155.85,9.86]
[1727390293162,3.2068,155.9,155.85,9.86]
[1727390293391,3.2068,155.9,155.85,13.0677]
[1727390294760,3.2069,155.89,155.85,13.0677]
[1727390294966,2.7248,155.94,155.86,3.2075]
[1727390295166,3.2069,155.89,155.85,9.86]
[1727390295568,9.86,155.89,155.84,3.2079]
[1727390296160,3.2071,155.88,155.84,3.2079]
[1727390296364,9.86,155.91,155.85,9.86]
[1727390296856,3.2069,155.89,155.85,9.86]
[1727390297669,3.2069,155.89,155.85,13.0677]
[1727390298066,9.86,155.93,155.86,9.86]
[1727390298267,9.86,155.93,155.88,9.86]
[1727390298664,3.2064,155.92,155.88,13.0669]
[1727390299167,1.3892,156.02,155.89,9.86]
[1727390299470,1.3892,156.02,155.9,3.2066]
[1727390299471,3.2059,155.94,155.9,3.2066]
[1727390300261,3.2061,155.93,155.9,3.2066]
[1727390305788,3.2058,155.95,155.9,9.86]
[1727390306270,3.2058,155.95,155.92,9.86]
[1727390307175,3.2055,155.96,155.92,9.86]
[1727390307391,2.6207,156.01,155.95,9.86]
[1727390307675,3.2052,155.98,155.95,9.86]
[1727390308270,3.2049,155.99,155.95,9.86]
[1727390308471,11.1455,156.01,155.95,9.86]
[1727390309771,3.205,155.98,155.95,13.0656]
[1727390313071,9.86,155.99,155.93,9.86]
[1727390313877,3.2052,155.97,155.93,13.0658]
[1727390314269,3.2052,155.97,155.93,9.86]
[1727390315180,1.2855,156.01,155.95,13.0656]
[1727390315376,11.2492,156.02,155.95,9.86]
[1727390316776,3.2047,156.0,155.96,3.2054]
[1727390317373,3.2047,156.0,155.97,3.2052]
[1727390317679,70.95505341,156.03,155.96,9.86]
[1727390317680,3.2044,156.01,155.96,9.86]
[1727390318071,3.2044,156.01,155.98,3.205]
[1727390318471,3.2048,155.99,155.9,10.80958816]
[1727390318679,3.2048,155.99,155.95,9.86]
[1727390319881,3.2048,155.99,155.96,3.2054]
[1727390327979,1.3103,156.05,155.97,9.86]
[1727390328181,9.86,156.03,155.97,9.86]
[1727390328481,13.0708493,156.03,155.97,9.86]
[1727390328879,3.2046,156.0,155.97,13.0651]
[1727390329675,70.93655073,156.06,155.98,9.86]
[1727390329889,9.86,156.05,155.98,9.86]
[1727390330283,13.06604078,156.05,155.99,3.2047]
[1727390330685,3.20604078,156.05,155.99,3.2047]
[1727390330881,13.06604078,156.05,155.99,3.2047]
[1727390331186,3.2043,156.02,155.99,3.2047]
[1727390333788,3.2041,156.03,155.99,3.2047]
[1727390335487,3.2041,156.03,156.0,3.2046]
[1727390336089,3.2041,156.03,156.0,13.0646]
[1727390344196,3.2043,156.02,155.95,3.22871018]
[1727390344395,9.86,156.04,155.97,9.86]
[1727390344702,9.86,156.03,155.97,9.86]
[1727390344907,3.2045,156.01,155.98,3.2049]
[1727390347306,3.2045,156.01,155.99,9.86]
[1727390348303,9.86,156.0,155.94,11.2308]
[1727390348900,9.86,156.02,155.95,9.86]
[1727390349509,3.2047,156.0,155.97,3.2052]
[1727390349908,3.2047,156.0,155.95,9.86]
[1727390350109,3.2047,156.0,155.96,3.2053]
[1727390358211,9.86,156.0,155.95,13.0656]
[1727390358811,3.2049,155.99,155.95,13.0656]
[1727390361513,3.2047,156.0,155.96,3.2053]
[1727390361718,3.2047,156.0,155.96,9.86]
[1727390363015,3.2047,156.0,155.96,13.0653]
[1727390363517,3.2045,156.01,155.96,9.86]
[1727390364918,3.2045,156.01,155.98,3.2048]
[1727390370920,3.13775888,156.04,155.93,2.7519]
[1727390370921,9.86,155.99,155.93,2.7519]
[1727390371122,9.86,155.99,155.93,1.3875]
[1727390371724,13.01314111,155.99,155.93,1.3875]
[1727390372124,3.2054,155.97,155.93,4.5934]
[1727390377424,3.2055,155.96,155.93,4.5934]
[1727390377632,3.2055,155.96,155.93,3.2059]
[1727390377828,9.86,155.97,155.9,9.86]
[1727390378033,3.2058,155.95,155.91,10.85077491]
[1727390378224,3.2058,155.95,155.9,9.86]
[1727390378635,3.2058,155.95,155.91,3.2063]
[1727390379129,3.1878564,155.98,155.91,3.2063]
[1727390379332,9.86,155.99,155.93,9.86]
[1727390379534,13.12961275,155.99,155.93,9.86]
[1727390380631,3.2054,155.97,155.93,13.066]
[1727390381628,3.2054,155.96,155.93,3.206]
[1727390382637,3.2054,155.96,155.92,3.2062]
[1727390387833,1.3893,156.03,155.89,1.3267]
[1727390387834,17.89618271,156.28,155.95,9.86]
[1727390388035,17.89618271,156.28,155.89,1.3267]
[1727390388036,9.86,156.25,156.18,9.86]
[1727390388243,4.0276,156.27,156.07,10.82958023]
[1727390388540,4.0276,156.27,156.14,9.86]
[1727390388738,7.27390779,156.27,156.09,10.82958023]
[1727390388938,9.86,156.18,156.1,10.82958023]
[1727390389239,7.27390779,156.27,156.07,4.40481119]
[1727390389436,9.86,156.19,156.17,7.87059325]
[1727390389636,9.86,156.19,156.18,35.19257577]
[1727390389831,7.27390779,156.27,156.13,9.86]
[1727390390041,7.27390779,156.27,156.18,36.83483885]
[1727390390042,9.86,156.2,156.18,36.83483885]
[1727390390238,9.86,156.2,156.16,7.87024318]
[1727390390442,7.27390779,156.27,156.17,20.81969152]
[1727390390443,9.86,156.18,156.17,20.81969152]
[1727390390642,12.5342,156.19,156.17,20.81969152]
[1727390390949,15.80518523,156.19,156.18,20.81969152]
[1727390391152,15.80518523,156.19,156.18,16.64769152]
[1727390391549,15.80518523,156.19,156.12,13.062]
[1727390391953,9.86,156.17,156.11,3.2023]
[1727390392645,15.80518523,156.19,156.12,9.86]
[1727390393541,15.80518523,156.19,156.08,2.6164]
[1727390393745,9.86,156.17,156.1,9.86]
[1727390394844,19.00608523,156.19,156.12,9.86]
[1727390395153,5.94518523,156.19,156.13,9.86]
[1727390395345,2.6742,156.19,156.15,9.86]
[1727390395546,1.3325,156.19,156.15,9.86]
[1727390398155,1.3325,156.19,156.14,3.2017]
[1727390400249,1.3325,156.19,156.08,2.6164]
[1727390400250,9.86,156.17,156.09,12.81417865]
[1727390400456,13.07515238,156.17,156.1,9.86]
[1727390400659,1.3325,156.19,156.15,9.86]
[1727390400850,1.3325,156.19,156.16,9.86]
[1727390401047,9.86,156.21,156.15,9.86]
[1727390401250,9.86,156.19,156.13,9.86]
[1727390401455,13.05305841,156.19,156.13,9.86]
[1727390401962,3.2009,156.18,156.13,13.0618]
[1727390402656,9.86,156.18,156.08,2.6164]
[1727390402857,9.86,156.15,156.09,22.67300426]
[1727390403056,9.86,156.15,156.09,9.86]
[1727390403254,11.1194,156.17,156.1,9.86]
[1727390403858,17.53498334,156.17,156.11,3.2023]
[1727390404758,3.2013,156.16,156.11,3.2023]
[1727390404954,9.86,156.14,156.08,1.3363]
[1727390405152,4.47368334,156.17,156.08,1.3363]
[1727390405153,9.86,156.16,156.09,9.86]
[1727390405651,9.86,156.16,156.1,3.2023]
[1727390405859,13.0615,156.16,156.1,11.21113192]
[1727390406055,13.0615,156.16,156.1,3.2023]
[1727390406363,4.47368334,156.17,156.08,11.1963]
[1727390406364,13.0619,156.14,156.08,11.1963]
[1727390406552,9.86,156.14,156.09,8.00929317]
[1727390406859,9.86,156.14,156.09,3.2027]
[1727390407059,13.0618,156.14,156.09,3.2027]
[1727390407859,3.2018,156.14,156.09,3.2027]
[1727390408370,3.2018,156.14,156.09,13.0627]
[1727390411462,3.202,156.13,156.08,14.3992]
[1727390411662,3.202,156.13,156.08,13.0629]
[1727390413760,3.202,156.13,156.09,3.2027]
[1727390414366,13.062,156.13,156.09,3.2027]
[1727390415266,13.062,156.13,156.08,9.86]
[1727390415267,3.2021,156.12,156.08,13.0629]
[1727390415968,13.062,156.13,156.09,3.2027]
[1727390419667,3.202,156.13,156.1,3.2025]
[1727390419869,3.202,156.13,156.08,9.86]
[1727390420669,3.202,156.13,156.09,3.2026]
[1727390425870,3.202,156.13,156.07,4.5248]
[1727390426267,9.86,156.12,156.04,1.3005]
[1727390426465,9.86,156.12,156.05,9.86]
[1727390426670,9.86,156.12,156.06,3.2032]
[1727390426966,13.0622,156.12,156.06,9.86]
[1727390427167,13.0622,156.12,156.08,3.203]
[1727390428772,9.86,156.12,156.05,3.2035]
[1727390428972,9.86,156.11,156.05,3.2035]
[1727390429676,3.2027,156.1,156.05,3.2035]
[1727390430168,25.06408334,156.17,156.03,1.2821]
[1727390430169,3.21428334,156.17,156.09,9.86]
[1727390430375,9.86,156.17,156.09,9.86]
[1727390430666,13.0619,156.14,156.07,9.86]
[1727390431064,9.86,156.14,156.07,9.86]
[1727390431270,9.86,156.14,156.08,3.2028]
[1727390432873,3.2019,156.13,156.08,3.2028]
[1727390433674,13.0617,156.14,156.09,3.2027]
[1727390433875,3.2017,156.14,156.09,3.2027]
[1727390434071,13.0617,156.14,156.09,3.2027]
[1727390435369,13.062,156.13,156.05,9.86]
[1727390436879,13.062,156.13,156.08,3.2029]
[1727390437473,3.202,156.13,156.09,3.2027]
[1727390437983,3.2018,156.14,156.09,3.2027]
[1727390441876,3.202,156.13,156.09,3.2027]
[1727390442383,13.062,156.13,156.09,3.2027]
[1727390444881,3.202,156.13,156.09,3.2027]
[1727390445980,3.2022,156.12,156.03,1.2821]
[1727390446287,9.86,156.11,156.05,9.86]
[1727390446878,3.2022,156.12,156.05,9.86]
[1727390447684,3.2022,156.12,156.08,3.2028]
[1727390451690,9.86,156.1,156.03,1.2821]
[1727390451886,9.86,156.1,156.03,11.1421]
[1727390452287,13.0627,156.1,156.06,3.2033]
[1727390452489,3.28205523,156.09,156.06,3.2033]
[1727390453087,6.48495523,156.09,156.05,13.0635]
[1727390456390,3.2026,156.1,156.06,7.30792797]
[1727390456594,3.2026,156.1,156.05,9.86]
[1727390456793,6.38681112,156.1,156.06,7.30829755]
[1727390456987,6.38681112,156.1,156.05,9.86]
[1727390457189,3.2026,156.1,156.06,7.30820985]
[1727390457392,3.2026,156.1,156.06,9.86]
[1727390457793,3.2026,156.1,156.07,3.2031]
[1727390458888,3.2028,156.09,156.04,9.86]
[1727390459093,3.2028,156.09,156.05,19.00250155]
[1727390459297,3.2028,156.09,156.06,7.30865444]
[1727390459595,3.2028,156.09,156.04,9.86]
[1727390459895,3.2028,156.09,156.06,3.2034]
[1727390460793,3.2027,156.1,156.06,3.2034]
[1727390461295,3.2027,156.1,156.07,7.30911861]
[1727390461496,3.2027,156.1,156.07,3.2031]
[1727390463496,3.2027,156.1,156.08,7.31004716]
[1727390463693,3.2027,156.1,156.07,3.2031]
[1727390464097,3.2027,156.09,156.08,7.3106469]
[1727390464294,3.2027,156.09,156.04,9.86]
[1727390464492,3.2027,156.09,156.05,19.01541932]
[1727390464800,3.2027,156.09,156.06,7.31362281]
[1727390465099,3.2027,156.09,156.07,7.31362281]
[1727390465403,3.2027,156.09,156.05,3.2034]
[1727390465596,3.2027,156.09,156.06,7.31412108]
[1727390465793,3.2027,156.09,156.07,7.31412108]
[1727390465993,3.2027,156.09,156.05,3.2034]
[1727390466189,3.2027,156.09,156.06,7.31430474]
[1727390466403,3.2027,156.09,156.07,7.31430474]
[1727390466591,3.2027,156.09,156.05,3.2034]
[1727390466795,3.2027,156.09,156.06,19.01720812]
[1727390466996,3.2027,156.09,156.07,7.31431081]
[1727390467299,3.2027,156.09,156.05,3.2034]
[1727390467490,3.2027,156.09,156.06,19.01980745]
[1727390467690,3.2027,156.09,156.05,3.2034]
[1727390467691,3.2027,156.09,156.07,7.31531056]
[1727390467996,3.2027,156.09,156.05,3.2034]
[1727390468202,3.2027,156.09,156.06,19.02023752]
[1727390468398,3.2027,156.09,156.07,7.31547597]
[1727390468703,3.2027,156.09,156.05,3.2034]
[1727390468995,3.2027,156.09,156.06,19.02221769]
[1727390469190,3.2027,156.09,156.07,7.31623757]
[1727390469394,3.2027,156.09,156.05,3.2034]
[1727390469802,3.2027,156.09,156.06,19.02218194]
[1727390470103,3.2027,156.09,156.07,7.31622382]
[1727390470303,3.2027,156.09,156.08,7.31622382]
[1727390470998,74.15346242,156.18,156.08,7.31622382]
[1727390471197,9.86,156.15,156.09,7.31622382]
[1727390471504,9.86,156.15,156.1,7.3146375]
[1727390471705,9.86,156.15,156.11,7.3146375]
[1727390471902,9.86,156.15,156.08,9.86]
[1727390472096,9.86,156.15,156.09,19.02215328]
[1727390472297,9.86,156.15,156.08,9.86]
[1727390472502,9.86,156.15,156.09,33.65177025]
[1727390472705,9.86,156.15,156.1,19.02059014]
[1727390472904,3.2018,156.14,156.11,7.31561159]
[1727390473100,3.2018,156.14,156.1,3.2024]
[1727390473303,3.2021,156.13,156.11,7.31601333]
[1727390473603,9.86,156.12,156.06,9.86]
[1727390473809,9.86,156.12,156.07,33.6641932]
[1727390474006,13.0623,156.12,156.08,22.23048746]
[1727390474312,13.0623,156.12,156.09,7.31830287]
[1727390474501,13.0623,156.12,156.08,3.2029]
[1727390474700,13.0623,156.12,156.09,7.31921899]
[1727390475002,13.0623,156.12,156.08,3.2029]
[1727390475210,13.0623,156.12,156.09,7.31873148]
[1727390475506,13.0623,156.12,156.08,3.2029]
[1727390475507,13.0623,156.12,156.1,7.31873148]
[1727390475802,13.0623,156.12,156.08,3.2029]
[1727390476005,13.0623,156.12,156.09,7.31939218]
[1727390476215,13.0623,156.12,156.1,7.31939821]
[1727390476407,9.86,156.14,156.1,7.31939821]
[1727390476605,9.86,156.14,156.08,9.86]
[1727390476802,9.86,156.15,156.09,19.02821748]
[1727390477006,9.86,156.15,156.1,7.31952891]
[1727390477206,9.86,156.15,156.11,7.31952891]
[1727390477403,3.2018,156.14,156.1,3.2024]
[1727390477605,3.2018,156.14,156.11,7.3205882]
[1727390477805,9.86,156.15,156.09,9.86]
[1727390478006,13.0616,156.15,156.11,3.2022]
[1727390478616,13.0616,156.15,156.12,7.32245926]
[1727390478914,13.0616,156.15,156.11,3.2022]
[1727390479213,13.0616,156.15,156.12,7.32245225]
[1727390479409,13.0616,156.15,156.11,3.2022]
[1727390479705,13.0616,156.15,156.12,7.32196898]
[1727390479908,13.0616,156.15,156.11,3.2022]
[1727390480114,13.0616,156.15,156.12,7.32439945]
[1727390480311,3.2018,156.14,156.1,3.2025]
[1727390480511,3.2018,156.14,156.11,7.32324009]
[1727390480710,9.86,156.14,156.12,7.32324009]
[1727390480918,3.2022,156.12,156.08,7.71839932]
[1727390481207,3.2022,156.12,156.09,33.69364063]
[1727390481411,3.2022,156.12,156.1,19.04498922]
[1727390481606,3.2022,156.12,156.11,7.32499585]
[1727390481808,3.202,156.13,156.11,7.32499585]
[1727390482007,3.202,156.13,156.09,3.2026]
[1727390482208,3.202,156.13,156.1,19.04402847]
[1727390482544,3.202,156.13,156.11,7.32462633]
[1727390482808,3.202,156.13,156.09,3.2026]
[1727390483009,3.202,156.13,156.1,7.32398689]
[1727390483313,3.202,156.13,156.11,7.32398689]
[1727390483518,3.202,156.13,156.12,7.32398689]
[1727390484114,3.2018,156.14,156.12,7.32398689]
[1727390484314,2.691,156.17,156.12,3.2021]
[1727390484512,9.86,156.16,156.12,3.2021]
[1727390484812,70.88806412,156.18,156.15,3.2015]
[1727390485013,70.88806412,156.18,156.13,9.86]
[1727390485215,70.88806412,156.18,156.14,7.31949783]
[1727390485408,70.88806412,156.18,156.13,9.86]
[1727390485614,70.88806412,156.18,156.14,7.31763043]
[1727390485810,70.88806412,156.18,156.15,3.2014]
[1727390486505,3.2007,156.19,156.15,3.2014]
[1727390486710,3.2007,156.19,156.15,13.0614]
[1727390487010,13.0606,156.2,156.16,3.2012]
[1727390487218,9.86,156.2,156.16,3.2012]
[1727390488316,13.0608,156.19,156.15,3.2015]
[1727390488626,9.86,156.19,156.15,3.2015]
[1727390489010,13.0608,156.19,156.15,3.2015]
[1727390489517,3.2005,156.2,156.16,3.2013]
[1727390489816,36.2825,156.22,156.15,9.86]
[1727390490020,46.1425,156.22,156.15,9.86]
[1727390490203,3.2004,156.21,156.17,3.2011]
[1727390490405,46.1425,156.22,156.17,3.2011]
[1727390490810,3.2006,156.2,156.16,3.2013]
[1727390491411,3.2007,156.19,156.15,3.2015]
[1727390491611,13.0607,156.19,156.15,3.2015]
[1727390492816,3.2009,156.18,156.15,3.2015]
[1727390499830,9.86,156.18,156.11,11.1987]
[1727390500232,3.2013,156.16,156.13,3.2018]
[1727390501320,3.2012,156.17,156.14,3.2017]
[1727390502925,3.2012,156.17,156.11,1.3387]
[1727390502926,9.86,156.17,156.11,1.3387]
[1727390503930,3.2016,156.15,156.12,3.2021]
[1727390504725,3.2014,156.16,156.12,3.2021]
[1727390505228,13.0617,156.15,156.11,3.2023]
[1727390505433,9.86,156.15,156.06,20.41204592]
[1727390505633,13.09191609,156.14,156.08,13.0628]
[1727390505833,9.86,156.14,156.09,7.29747981]
[1727390506032,3.2021,156.13,156.08,9.86]
[1727390506226,3.2021,156.13,156.09,7.29783146]
[1727390506429,9.86,156.15,156.1,3.2025]
[1727390506633,3.2018,156.14,156.1,3.2025]
[1727390507536,3.2019,156.13,156.1,3.2025]
[1727390508037,9.86,156.12,156.06,3.2032]
[1727390508235,13.0627,156.1,156.06,3.2032]
[1727390509836,3.2028,156.09,156.05,3.2035]
[1727390510232,9.86,156.1,156.05,3.2035]
[1727390510435,9.86,156.1,156.04,9.86]
[1727390510633,9.86,156.1,156.05,17.16125538]
[1727390510831,9.86,156.1,156.05,9.86]
[1727390511232,9.86,156.1,156.03,1.345]
[1727390511428,9.86,156.1,156.04,7.30128998]
[1727390511429,3.2028,156.09,156.04,7.30128998]
[1727390511762,3.2028,156.09,156.04,9.86]
[1727390512239,3.2028,156.09,156.05,7.30155437]
[1727390512428,3.2028,156.09,156.04,9.86]
[1727390512729,3.2028,156.09,156.05,7.30162489]
[1727390512930,13.0626,156.1,156.06,3.2033]
[1727390515040,3.2026,156.1,156.06,3.2033]
[1727390517144,1.314,156.14,156.06,9.86]
[1727390517340,1.314,156.14,156.07,9.86]
[1727390517837,9.86,156.16,156.09,9.86]
[1727390518842,3.2018,156.14,156.11,3.2022]
[1727390519340,3.2016,156.15,156.11,3.2022]
[1727390519740,2.6469,156.18,156.12,3.2021]
[1727390519941,3.2014,156.16,156.12,9.86]
[1727390520344,9.86,156.18,156.12,9.86]
[1727390520643,3.2012,156.17,156.14,9.86]
[1727390522035,44.86,156.2,156.14,9.86]
[1727390522234,44.86,156.2,156.1,11.66813361]
[1727390522235,9.86,156.19,156.1,11.66813361]
[1727390522450,9.86,156.19,156.12,9.86]
[1727390523054,13.07034934,156.19,156.12,9.86]
[1727390523241,3.2013,156.17,156.14,3.2017]
[1727390523444,9.86,156.19,156.14,3.2017]
[1727390523742,9.86,156.19,156.14,13.0617]
[1727390524047,9.86,156.19,156.13,9.86]
[1727390524243,3.13734319,156.18,156.11,21.52770792]
[1727390524446,3.2014,156.16,156.13,3.2019]
[1727390525045,3.2011,156.17,156.13,9.86]
[1727390525346,44.86,156.2,156.14,3.2016]
[1727390525538,44.86,156.2,156.13,9.86]
[1727390525851,9.86,156.18,156.11,9.86]
[1727390526145,9.86,156.18,156.13,3.2019]
[1727390526146,13.09372732,156.18,156.13,3.2019]
[1727390526544,13.09372732,156.18,156.11,3.2021]
[1727390526742,9.86,156.16,156.11,3.2021]
[1727390527753,3.2016,156.15,156.11,3.2021]
[1727390528347,9.86,156.13,156.07,1.2578]
[1727390528544,9.86,156.12,156.08,7.29837656]
[1727390528739,9.86,156.12,156.07,1.2578]
[1727390528948,9.86,156.12,156.08,7.29867364]
[1727390529250,9.86,156.12,156.08,3.2028]
[1727390529548,1.2583,156.16,156.07,1.2578]